Cogmind - Beta 9.3 *** ADVENTURER MODE // 2019.12.19 @ 02:45:40 // Winter2019/RPGLIKE Player: Naro Result: Destroyed by Y-45 Defender with Heavy Assault Rifle Performance ------------- Evolutions (1) 500 Regions Visited (3) 600 Robots Destroyed (17) 85 Value Destroyed (469) 469 Prototype IDs (2) 40 Alien Tech Used (0) 0 Bonus (0) 0 TOTAL SCORE: 1694 Bonus ------- None Cogmind --------- Core Integrity 0/600 Matter 424/450 Energy 156/160 System Corruption 0% Temperature Cool (11) Movement Walking (120) Location -9/Materials Parts ------- > --- POWER (1) -------- Light Nuclear Core > --- PROPULSION (2) --- Improved Aluminum Leg Improved Aluminum Leg > --- UTILITY (2) ------ Large Matter Pod Utility Shielding > --- WEAPON (2) ------- Heavy Assault Rifle Heavy Assault Rifle > --- INVENTORY (3) ---- Light Treads Assault Rifle Peak State ------------ > --- POWER ------------ Light Nuclear Core > --- PROPULSION ------- Improved Aluminum Leg Improved Aluminum Leg > --- UTILITY ---------- Large Matter Pod Utility Shielding > --- WEAPON ----------- Heavy Assault Rifle Heavy Assault Rifle > --- INVENTORY -------- Light Treads Assault Rifle [Rating: 13] Favorites ----------- Power Light Nuclear Core Engine Ion Engine Power Core Light Nuclear Core Propulsion Wheel Leg Improved Aluminum Leg Wheel Wheel Utility Large Matter Pod Storage Large Matter Pod Protection Utility Shielding Weapon Heavy Assault Rifle Ballistic Gun Heavy Assault Rifle Build | -11 -10 -10 -9 ------- Run | Scr Mat Min Mat Slots Evolved 3 | 1 . . 2 Power . | . . . . Propulsion 1 | 1 . . . Utility 1 | . . . 1 Weapon 1 | . . . 1 Parts Attached 13 | 4 1 1 7 Power 2 | 1 . 1 . Engine 1 | 1 . . . Core 1 | . . 1 . Reactor . | . . . . Propulsion 4 | 2 . . 2 Treads . | . . . . Leg 2 | . . . 2 Wheel 2 | 2 . . . Hover . | . . . . Flight . | . . . . Utility 2 | . 1 . 1 Device . | . . . . Storage 1 | . 1 . . Processor . | . . . . Hackware . | . . . . Protection 1 | . . . 1 Artifact . | . . . . Weapon 5 | 1 . . 4 Energy Gun . | . . . . Energy Cannon . | . . . . Ballistic Gun 5 | 1 . . 4 Ballistic Cannon . | . . . . Launcher . | . . . . Special Weapon . | . . . . Impact Weapon . | . . . . Slashing Weapon . | . . . . Piercing Weapon . | . . . . Special Melee Weapon . | . . . . Unidentified Prototypes . | . . . . Parts Lost 1 | . . . 1 Power . | . . . . Propulsion 1 | . . . 1 Utility . | . . . . Weapon . | . . . . Highest Loss Streak 1 | . . . 1 Average Slot Usage (%) 93 | . 93 100 90 Engine 7 | . 20 17 . Core 9 | . . 2 14 Leg 4 | . . . 7 Wheel 24 | . 40 40 13 Storage 16 | . 13 20 14 Protection 6 | . . . 11 Ballistic Gun 24 | . 20 20 27 Naked Turns . | . . . . Heaviest Build 15 | 6 9 9 15 Greatest Support 46 | 31 31 31 46 Greatest Overweight (x) . | . . . . Average Overweight (x) . | . . . . Largest Inventory Capacity 3 | 3 3 3 3 Average Capacity 2 | 2 3 3 3 Most Carried 3 | 3 2 3 3 Average Carried 1 | . . 1 1 Final Capacity 3 | 3 3 3 3 Final Carried 3 | . 1 3 2 Class Distribution -------------------- 100% | Mutant Dominant Class ---------------- Mutant | -10/Materials Mutant | -10/Mines Mutant | -9/Materials Resources | -11 -10 -10 -9 ----------- Run | Scr Mat Min Mat Matter Collected 637 | 252 . 157 228 Remotely . | . . . . Salvage Created 694 | 59 . 181 454 Parts 43 | 1 . 18 24 Haulers Intercepted . | . . . . Recyclers Shooed . | . . . . Parts Field Recycled . | . . . . Retrieved Matter . | . . . . Parts Self-Destructed . | . . . . Prevented . | . . . . Kills | -11 -10 -10 -9 ------- Run | Scr Mat Min Mat Combat Hostiles Destroyed 15 | . . 7 8 Guns 15 | . . 7 8 Classes Destroyed 5 | 1 . 2 2 Recycler 1 | 1 . . . Watcher 1 | . . . 1 Swarmer 6 | . . 3 3 Grunt 4 | . . 4 . Sentry 5 | . . . 5 Best Kill Streak 4 | 1 . 3 4 Combat Bots Only 3 | . . 3 3 Max Kills in Single Turn 1 | 1 . 1 1 Gunslinging . | . . . . Exploded . | . . . . Melee . | . . . . Uniques/NPCs Destroyed . | . . . . Combat | -11 -10 -10 -9 -------- Run | Scr Mat Min Mat Damage Taken 1156 | . 79 399 678 Core 913 | . 60 330 523 Absorbed by Shields . | . . . . Redirected to Core 673 | . 44 217 412 Core Remaining (%) 87 | 100 . 75 . Volleys Fired 79 | 12 . 34 33 Largest 2 | 1 . 1 2 Hottest 46 | 20 . 20 46 Shots Fired 112 | 12 . 34 66 Gun 112 | 12 . 34 66 Cannon . | . . . . Launcher . | . . . . Special . | . . . . Kinetic 112 | 12 . 34 66 Thermal . | . . . . Explosive . | . . . . Electromagnetic . | . . . . Robot Hit Streak 38 | 9 . 38 22 Robot Miss Streak 1 | 1 . 1 1 Penetration Max . | . . . . Secondary Targets 2 | . . . 2 Max Gunslinging Chain 1 | . . . 1 Shots Hit Robots 93 | 11 . 33 49 Core Hits 36 | 3 . 18 15 Critical Hits 1 | . . . 1 Critical Kills . | . . . . Critical Parts Destroyed 1 | . . . 1 Melee Attacks . | . . . . Impact . | . . . . Slashing . | . . . . Piercing . | . . . . Sneak Attacks . | . . . . Combat Hostiles . | . . . . Follow-up Attacks . | . . . . Damage Inflicted 909 | 87 . 279 543 Guns 909 | 87 . 279 543 Cannons . | . . . . Explosions . | . . . . Melee . | . . . . Ramming . | . . . . Kinetic 909 | 87 . 279 543 Thermal . | . . . . Explosive . | . . . . Electromagnetic . | . . . . Impact . | . . . . Slashing . | . . . . Piercing . | . . . . Highest Corruption . | . . . . Average Corruption . | . . . . Corruption Purged . | . . . . Overload Shots . | . . . . Overflow Damage . | . . . . Projectiles . | . . . . Explosions . | . . . . Melee . | . . . . Knockbacks . | . . . . Impact . | . . . . Kinetic . | . . . . Secondary . | . . . . Self-Inflicted Damage . | . . . . Shots . | . . . . Rammed . | . . . . Targets Rammed . | . . . . Kicked . | . . . . Crushed . | . . . . Highest Temperature 15 | . . 15 . Average Temperature 8 | . . 8 . Received Heat Transfer 462 | . . 234 228 Siege Activations . | . . . . Robots Corrupted . | . . . . Combat Hostiles . | . . . . Parts Fried . | . . . . Impact Corruptions . | . . . . Robots Melted . | . . . . Combat Hostiles . | . . . . Parts Melted . | . . . . Heat Transferred . | . . . . Parts Sabotaged . | . . . . Parts Stolen . | . . . . Parts Stripped . | . . . . Power Chain Reactions . | . . . . Missiles Intercepted . | . . . . Alert | -11 -10 -10 -9 ------- Run | Scr Mat Min Mat Peak Influence 350 | 5 24 180 350 Average Influence 130 | 1 10 65 195 Maximum Alert Level 1 | . . . 1 Low Security (%) 77 | 100 100 100 59 Level 1 22 | . . . 40 Level 2 . | . . . . Level 3 . | . . . . Level 4 . | . . . . Level 5 . | . . . . High Security . | . . . . Max Security . | . . . . Squads Dispatched 2 | . . . 2 Investigation . | . . . . Extermination . | . . . . Reinforcement 2 | . . . 2 Assault . | . . . . Garrison . | . . . . Intercept . | . . . . Construction Impeded . | . . . . Haulers Reinforced . | . . . . Stealth | -11 -10 -10 -9 --------- Run | Scr Mat Min Mat Distress Signals 1 | . . . 1 Communications Jammed . | . . . . Distress Signals . | . . . . Times Spotted 30 | . 3 7 20 Peak Tracking Total 7 | . 3 3 7 Tactical Retreats 1 | . . . 1 Traps | -11 -10 -10 -9 ------- Run | Scr Mat Min Mat Traps Triggered . | . . . . Indirectly . | . . . . Trap Hack Attempts . | . . . . Triggered . | . . . . Disarmed . | . . . . Reprogrammed . | . . . . Reused . | . . . . Traps Extracted . | . . . . Installed . | . . . . Triggered . | . . . . Machines | -11 -10 -10 -9 ---------- Run | Scr Mat Min Mat Machines Disabled . | . . . . Max in Single Turn . | . . . . Machines Sabotaged . | . . . . Garrisons Compromised . | . . . . Overloaded Fab Kills . | . . . . Fab Network Shutdowns . | . . . . Hacking | -11 -10 -10 -9 --------- Run | Scr Mat Min Mat Machines Accessed 6 | . 1 1 4 Terminals 6 | . 1 1 4 Fabricators . | . . . . Repair Stations . | . . . . Recycling Units . | . . . . Scanalyzers . | . . . . Garrison Access . | . . . . Total Hacks 24 | . 4 2 18 Successful 16 | . 4 1 11 Failed 8 | . . 1 7 Catastrophic 1 | . . . 1 Database Lockouts . | . . . . Manual 2 | . . 1 1 Terminals 24 | . 4 2 18 Fabricators . | . . . . Repair Stations . | . . . . Recycling Units . | . . . . Scanalyzers . | . . . . Garrison Access . | . . . . Terminal Hacks 16 | . 4 1 11 Record 5 | . 2 . 3 Prototype ID Bank 1 | . . . 1 Level Access Points 1 | . . . 1 Terminal Index 1 | . . . 1 Alert Level 2 | . . . 2 Locate Traps 1 | . 1 . . Dispatch Records 2 | . . 1 1 Investigation Status 1 | . . . 1 Zone Layout 2 | . 1 . 1 Fabricator Hacks . | . . . . Repair Station Hacks . | . . . . Recycling Unit Hacks . | . . . . Scanalyzer . | . . . . Garrison Access Hacks . | . . . . Unauthorized Hacks . | . . . . Terminals . | . . . . Fabricators . | . . . . Repair Stations . | . . . . Recycling Units . | . . . . Scanalyzers . | . . . . Garrison Access . | . . . . Data Cores Recovered . | . . . . Used . | . . . . Hacking Detections 4 | . . 1 3 Full Trace Events . | . . . . Feedback Events . | . . . . Feedback Blocked . | . . . . Robot Schematics Acquired . | . . . . Robots Built . | . . . . Matter . | . . . . Time . | . . . . Total Robot Build Rating . | . . . . Part Schematics Acquired . | . . . . Parts Built . | . . . . Matter . | . . . . Time . | . . . . Total Part Build Rating . | . . . . Parts Repaired . | . . . . Time . | . . . . Parts Recycled . | . . . . Recycled Matter . | . . . . Retrieved Matter . | . . . . Retrieved Components . | . . . . Parts Scanalyzed . | . . . . Part Schematics Acquired . | . . . . Parts Damaged . | . . . . Bothacking | -11 -10 -10 -9 ------------ Run | Scr Mat Min Mat Used RIF Installer . | . . . . Robots Hacked . | . . . . Non-combat . | . . . . Combat . | . . . . Robot Hacks Applied . | . . . . Relay Couplers Released . | . . . . Robots Rewired . | . . . . Allies Hacked . | . . . . Hacks Repelled . | . . . . Allies | -11 -10 -10 -9 -------- Run | Scr Mat Min Mat Total Allies . | . . . . Largest Group . | . . . . Highest-Rated Group . | . . . . Highest-Rated Ally . | . . . . Total Orders . | . . . . Ally Attacks . | . . . . Total Damage . | . . . . Kills . | . . . . Allies Corrupted . | . . . . Allies Melted . | . . . . Intel | -11 -10 -10 -9 ------- Run | Scr Mat Min Mat Robot Analysis Total . | . . . . Derelict Logs Recovered 2 | . . 2 . Drone Launches . | . . . . Drone Recoveries . | . . . . Exploration | -11 -10 -10 -9 ------------- Run | Scr Mat Min Mat Turns Passed 1141 | 77 57 374 633 Spaces Moved 962 | 57 60 318 527 Core 10 | 10 . . . Treads . | . . . . Legs 142 | . . . 142 Wheels 810 | 47 60 318 385 Hover . | . . . . Flight . | . . . . Fastest Speed 50 | 50 90 90 80 Average Speed 91 | 82 90 90 92 Slowest Speed 120 | 90 90 90 120 Overloaded Moves . | . . . . Propulsion Burnouts . | . . . . Robots Hopped . | . . . . Cave-ins Triggered . | . . . . Exploration Rate (%) 34 | 5 17 74 41 Regions Visited 3 Branch Regions 1 Pre-discovered Areas . | . . . . Known Exits Taken . | . . . . Unknown Exits Taken 3 | 1 1 1 . Scrap Searched 1 | . . 1 . Spaces Dug . | . . . . Terrain Destroyed . | . . . . Melee . | . . . . Projectile . | . . . . AOE . | . . . . Actions | -11 -10 -10 -9 --------- Run | Scr Mat Min Mat Total 1130 | 76 62 380 612 Wait 41 | . . 10 31 Move 959 | 56 59 317 527 Hop . | . . . . Pick Up 16 | 4 2 4 6 Fast Attach 1 | . . 1 . Attach 9 | 4 1 . 4 Detach . | . . . . Swap 3 | . . . 3 Drop 7 | . . 3 4 Fire 79 | 12 . 34 33 Melee . | . . . . Ram . | . . . . Kick . | . . . . Crush . | . . . . Escape Stasis . | . . . . Rewire . | . . . . Trap . | . . . . Miscellaneous 15 | . . 11 4 Route ------- -11/Scrapyard -10/Materials -10/Mines -9/Materials (discovered 3 exits: *Mat x3) History --------- Turn | Location | Event 2 | -11/Scrapyard | Upgraded with Propulsion slot (x1) 9 | -11/Scrapyard | Discovered new exit (range 16) 78 | -11/Scrapyard | Entered Materials 101 | -10/Materials | Discovered new exit (range 15) 135 | -10/Materials | Entered Mines 252 | -10/Mines | Learned 2 Materials zone layouts 301 | -10/Mines | Build established: Mutant 440 | -10/Mines | Discovered new exit (range 6) 478 | -10/Mines | Learned Materials terminal intel 509 | -10/Mines | Entered Materials 511 | -9/Materials | Loaded intel: 12 terminal locations 511 | -9/Materials | Reached level 2 511 | -9/Materials | Reached level 3 511 | -9/Materials | Reached level 4 513 | -9/Materials | Upgraded with Utility slot (x1) 513 | -9/Materials | Upgraded with Weapon slot (x1) 520 | -9/Materials | Identified exit to Materials 643 | -9/Materials | Core integrity fell below 50% 867 | -9/Materials | Core integrity fell below 20% 1142 | -9/Materials | Destroyed by Y-45 Defender with Heavy Assault Rifle Last Messages --------------- 1x Reinforcement 00842_ K-01 Serf collects debris. 00855_ U-05 Engineer builds a Door. 00856_ K-01 Serf cleans the Terminal. 00863_ K-01 Serf collects debris. 00870_ U-05 Engineer lays Concrete. 00872_ Y-45 Defender destroyed. 00872_ U-05 Engineer lays Concrete. 00877_ Acquired 24 matter. 00878_ R-06 Scavenger collects Imp. Ion Engine. 00879_ K-01 Serf cleans the Pressure Siphon. 00882_ R-06 Scavenger collects Lgt. Armor Plating. 00884_ K-01 Serf collects debris. 00960_ O-16 Technician: "IFF HANDSHAKE FAILED. SECURING TERMINAL." 00965_ Dropped Wheel. 00966_ Acquired Imp. Aluminum Leg. 00969_ ALERT: Hostiles spotted, dispatching reinforcements to Terminal M008. 00969_ Acquired Imp. Aluminum Leg. 01102_ K-01 Serf cleans the Neutrino Reactor. Map ----- +----------------------------------------------------+ | ????# """ ?# # #?????????????????? | | ????######## # #?????????????????? | | ??????# # #?????????????????? | | ??????# #### # #????""???????????? | | ??????# #??# + #???"""???????????? | | ??#####+#### # #?? """"??????????? | | ?# # # #? """"??????????? | | # # ###### """ #??????? | | ?#[ # #??????? | | ?# + #??????? | | ?# """ """ # #??????? | | ?# """ """ # #### ????? | | ?# """ """ #Y g#??? "T" ##?????? | | ?# # #??? #####+###??????? | | ?#??##+##### #??? #??????????????? | | ???????????# #???? #??????????????? | | ???????????# #???? #??????????????? | | ???????????# #???? #??????????????? | | ???????????# #???? #??????????????? | | ???????????# #????? #??????????????? | | ???????????# u #????? #??????????????? | | ???????????# #????? #??????????????? | | ???????????# #????? #??????????????? | | ???????????# #?????? ???????????????? | | ???????????# #??????????????????????? | | ???????????# @#??????????????????????? | | ???????????# #??????????????????????? | | ???????????# < #??????????????????????? | | ???????????# #??????????????????????? | | ???????????#####??????????????????????? | | ??????????????????????????????????????? | | ??????????????????????????????????????? | | ??????????????????????????????????????? | | ??????????????????????????????????????? | | ??????????????????????????????????????? | | ??????????????????????????????????????? | | ???????????????""T""??????????????????? | | ???????????????"""""??????????????????? | | ??????????????????????????????????????? | | ??????????????????????????????????????? | | ??????????????????????????????????????? | | ??????????????????????????????????????? | | ??????????????????????????????????????? | | ??????????????????????????????????????? | | ???????????????????""T""??????????????? | | ???????????????????"""""??????????????? | | ??????????????????????????????????????? | | | | | | | +----------------------------------------------------+ Best States ------------- Heat Dissipation 61 Energy Generation 19 Energy Capacity 250 Matter Stores 450 Matter Capacity 450 Sight Range 16 Robot Scan Range 2 Terrain Scan Density 10 Resistance: KI 25 Resistance: TH 20 Resistance: EX 20 Resistance: EM 20 Resistance: I 20 Resistance: S 20 Resistance: P 20 Utility Shielding 33 Evasion (%) 50 Offensive Hacking 10 Item Schematics ----------------- None Robot Schematics ------------------ None Fabricated ------------ Nothing Alien Tech Used ----------------- None Achievements -------------- None Challenges ------------ None RPGLIKE | -11 -10 -10 -9 --------- Run | Scr Mat Min Mat Levels Raised 3 | . . . 3 XP Earned 9727 | 4000 . 1350 4377 XP Spent 7300 | 3900 . . 3400 Upgrades 24 | 11 . . 13 Propulsion Slot 1 | 1 . . . Utility Slot 1 | . . . 1 Weapon Slot 1 | . . . 1 Heat Dissipation 6 | . . . 6 Energy Generation 1 | . . . 1 Mass Support 4 | 1 . . 3 Inventory Capacity 3 | 3 . . . Sensor Range 1 | 1 . . . Ranged Accuracy 3 | 2 . . 1 KI Resistance % 1 | 1 . . . KI Damage % 2 | 2 . . . Protomatter Created 91 | . . 91 . Integrity Restored 312 | . . 240 72 Core 312 | . . 240 72 Protomatter Decayed . | . . . . Game ------ Seed TacticalBeamChip Manual? 0 Play Time 00:25:22 Cumulative 3.2 hours Start 2019.12.19 @ 02:21:28 End 2019.12.19 @ 02:45:40 Sessions 1 Manual Loads 0 Difficulty Adventurer Special Mode Winter2019/RPGLIKE Game No. 3 Rogue 0 Adventurer 3 Explorer 0 Win Type - Total 0 Types 0/0/0/0/0/0/0 Lore% 2 Gallery% 7 Achievement% 5 Wizard Run 0 Options --------- ASCII 0 Keyboard 0 Movement Mouse Keybinds 0 Fullscreen 1 Font 18/X11Bold Map View 76x50 Tactical HUD 1 Map Filters NONE Filters NONE Steam 1 RUN: fcb4147e-41cc-4caa-97db-d49bcb03976c